Cogmind - Beta 17 @@@ ROGUE MODE // 2026.08.08 @ 21:40:48 Player: cptwinky Result: Destroyed by Autobeam Turret with Autobeam Performance ------------- Evolutions (0) 0 Regions Visited (2) 400 Robots Destroyed (35) 175 Value Destroyed (930) 930 Prototype IDs (0) 0 Alien Tech Used (0) 0 Bonus (0) 0 TOTAL SCORE: 1505 Bonus ------- None Cogmind --------- Core Integrity 0/250 Matter 300/300 Energy 250/250 System Corruption 0% Temperature Cool (6) Movement Treading (240) Ox1 Location -10/Subcaves Parts ------- > --- POWER (1) -------- Ion Engine > --- PROPULSION (2) --- Light Treads Light Treads > --- UTILITY (2) ------ High-capacity Storage Unit Light Armor Plating > --- WEAPON (2) ------- Battle Rifle Subdweller Machine Gun > --- INVENTORY (20) --- Subdweller Power Source Light Treads Light Treads Spiked Treads Compact Wheel Subdweller Monowheel Subdweller Monowheel Improved Heat Sink Small Storage Unit Seismic Detector Light Armor Plating Heavy Riot Gun Subdweller Beam Cannon Grenade Launcher Mining Laser Ripper Shrapnel Trap Peak State ------------ > --- POWER ------------ Ion Engine > --- PROPULSION ------- Light Treads Light Treads > --- UTILITY ---------- Improved Heat Sink High-capacity Storage Unit > --- WEAPON ----------- Spread Laser Spread Laser > --- INVENTORY -------- Light Treads Light Treads Light Treads Compact Wheel Small Storage Unit Seismic Detector Light Armor Plating Light Armor Plating Assault Rifle Mining Laser [Rating: 12] Favorites ----------- Power Ion Engine Engine Ion Engine Propulsion Light Treads Treads Light Treads Utility High-capacity Storage Unit Device Seismic Detector Storage High-capacity Storage Unit Protection Light Armor Plating Weapon Spread Laser Energy Gun Spread Laser Ballistic Gun Assault Rifle Launcher Grenade Launcher Special Weapon Mining Laser Build | -11 -10 -10 ------- Run | Yrd Mat Sub Slots Evolved . | . . . Power . | . . . Propulsion . | . . . Utility . | . . . Weapon . | . . . Parts Attached 26 | 7 12 7 Power 3 | 1 2 . Engine 3 | 1 2 . Core . | . . . Reactor . | . . . Propulsion 4 | 2 1 1 Treads 4 | 2 1 1 Leg . | . . . Wheel . | . . . Hover . | . . . Flight . | . . . Utility 8 | 1 4 3 Device 3 | . 2 1 Storage 2 | 1 1 . Processor . | . . . Hackware . | . . . Protection 3 | . 1 2 Artifact . | . . . Weapon 11 | 3 5 3 Energy Gun 5 | 1 4 . Energy Cannon . | . . . Ballistic Gun 4 | 2 . 2 Ballistic Cannon . | . . . Launcher 1 | . . 1 Special Weapon 1 | . 1 . Impact Weapon . | . . . Slashing Weapon . | . . . Piercing Weapon . | . . . Special Melee Weapon . | . . . Unidentified Prototypes . | . . . Parts Lost 6 | . . 6 Power 1 | . . 1 Propulsion . | . . . Utility 2 | . . 2 Weapon 3 | . . 3 Highest Loss Streak 4 | . . 4 To Critical Strikes . | . . . Average Backups 12 | 4 9 15 Power . | . . . Propulsion 4 | 2 3 4 Utility 4 | . 3 4 Weapon 3 | . 2 4 Tool/Special . | . . . Unused Backups 14 | . 4 10 Power 2 | . 1 1 Propulsion 8 | . 3 5 Utility 1 | . . 1 Weapon 3 | . . 3 Tool/Special . | . . . Average Slot Usage (%) 98 | . 97 99 Engine 14 | . 14 14 Treads 28 | . 28 28 Device 5 | . 6 4 Storage 14 | . 14 14 Protection 7 | . 5 9 Energy Gun 21 | . 24 19 Ballistic Gun 5 | . 2 8 Peak Build Rating 12 | 6 12 12 Average Rating 9 | 5 9 10 On Entrance 5 | . 6 10 Avg Prop Armor Cover (%) . | . . . Naked Turns . | . . . Heaviest Build 54 | 12 54 54 Greatest Support 40 | 40 40 40 Greatest Overweight (x) 1 | . 1 1 Average Overweight (x) . | . . 1 Largest Inventory Capacity 20 | 8 20 20 Average Capacity 16 | 7 13 20 Most Carried 18 | 8 14 18 Average Carried 12 | 4 9 15 Final Capacity 20 | 8 20 20 Final Carried 17 | 8 14 17 Class Distribution -------------------- 100% | Mutant Dominant Class ---------------- Mutant | -10/Materials Mutant | -10/Subcaves Resources | -11 -10 -10 ----------- Run | Yrd Mat Sub Matter Collected 721 | 200 296 225 Remotely . | . . . Salvage Created 822 | 21 505 296 Parts 59 | 5 37 17 Haulers Intercepted 2 | . 2 . Recyclers Shooed 1 | . 1 . Parts Field Recycled . | . . . Retrieved Matter . | . . . Parts Self-Destructed 3 | . . 3 Prevented . | . . . Parts Restored . | . . . Kills | -11 -10 -10 ------- Run | Yrd Mat Sub Combat Hostiles Destroyed 30 | . 20 10 Guns 28 | . 20 8 AOE 2 | . . 2 Classes Destroyed 6 | 1 4 1 Tunneler 1 | 1 . . Hauler 2 | . 2 . Operator 2 | . 2 . Swarmer 9 | . 9 . Grunt 11 | . 11 . Subdweller 10 | . . 10 Best Kill Streak 4 | 1 4 2 Combat Bots Only 4 | . 4 2 Max Kills in Single Turn 2 | 1 1 2 Gunslinging . | . . . Exploded 2 | . . 2 Melee . | . . . Uniques/NPCs Destroyed . | . . . Combat | -11 -10 -10 -------- Run | Yrd Mat Sub Hostile Shots Fired 131 | . 87 44 Missed 24 | . 20 4 Hits 107 | . 67 40 Projectile 107 | . 67 40 Critical Strikes 1 | . . 1 Damage Taken 1467 | . 646 821 Core 255 | . 118 137 Absorbed by Shields . | . . . Regen/Repaired (Parts) 85 | . 85 . Core Remaining (%) 100 | 100 . . Volleys Fired 88 | 4 59 25 Largest 2 | 2 2 2 Hottest 130 | 70 130 130 Shots Fired 161 | 8 107 46 Gun 150 | 8 100 42 Cannon . | . . . Launcher 1 | . . 1 Special 10 | . 7 3 Kinetic 38 | 4 20 14 Thermal 122 | 4 87 31 Explosive 1 | . . 1 Electromagnetic . | . . . Robot Hit Streak 24 | 4 14 24 Robot Miss Streak 9 | 2 9 2 Penetration Max . | . . . Secondary Targets 3 | . 3 . Max Gunslinging Chain 1 | . 1 . Shots Hit Robots 120 | 6 77 37 Core Hits 123 | 1 79 43 Critical Kills . | . . . Critical Parts Destroyed . | . . . Critical Strikes . | . . . Melee Attacks . | . . . Impact . | . . . Slashing . | . . . Piercing . | . . . Sneak Attacks . | . . . Combat Hostiles . | . . . Follow-up Attacks . | . . . Damage Inflicted 1881 | 79 1068 734 Guns 1771 | 79 1056 636 Cannons . | . . . Explosions 98 | . . 98 Melee . | . . . Ramming 12 | . 12 . Kinetic 385 | 41 161 183 Thermal 1386 | 38 895 453 Explosive 98 | . . 98 Electromagnetic . | . . . Impact . | . . . Slashing . | . . . Piercing . | . . . Highest Corruption . | . . . Average Corruption . | . . . Corruption Purged . | . . . Corruption Blocked . | . . . Overload Shots . | . . . Overflow Damage . | . . . Projectiles . | . . . Explosions . | . . . Melee . | . . . Knockbacks . | . . . Impact . | . . . Kinetic . | . . . Secondary . | . . . Self-Inflicted Damage . | . . . Shots . | . . . Rammed 5 | . 5 . Targets Rammed 5 | . 5 . Kicked . | . . . Crushed . | . . . Highest Temperature 415 | 36 415 126 Average Temperature 81 | 19 93 46 Received Heat Transfer 414 | . 195 219 Effects 2 | . 2 . Energy Bleed 2 | . 2 . Siege Activations . | . . . Martial Activations . | . . . Shielding Activations . | . . . Robots Disrupted . | . . . Combat Hostiles . | . . . Robots Corrupted . | . . . Combat Hostiles . | . . . Parts Fried . | . . . Impact Corruptions . | . . . Robots Melted . | . . . Combat Hostiles . | . . . Parts Melted 1 | . 1 . Heat Transferred 2040 | 111 1349 580 Parts Sabotaged . | . . . Parts Stolen . | . . . Parts Stripped . | . . . Power Chain Reactions . | . . . Alert | -11 -10 -10 ------- Run | Yrd Mat Sub Maximum Alert Level 1 | . 1 . Low Security (%) 86 | 100 85 . Level 1 13 | . 14 . Level 2 . | . . . Level 3 . | . . . Level 4 . | . . . Level 5 . | . . . High Security . | . . . Max Security . | . . . Peak Influence 233 | 5 233 . Initial . | . . . Average 123 | . 134 . Influence Increases 649 | 5 644 . Destroy 0b10 Robot/C 400 | . 400 . Destroy 0b10 Robot/NC 25 | 5 20 . Destroy Leader 94 | . 94 . Successful Hack 6 | . 6 . Disable Machine 15 | . 15 . Destroy Structure 4 | . 4 . Lose Combat Pursuer 105 | . 105 . Influence Decreases 649 | 5 460 184 Entered New Map 89 | . . 89 Time Decay 560 | 5 460 95 Squads Dispatched 5 | . 5 . Investigation 1 | . 1 . Extermination . | . . . Reinforcement 4 | . 4 . Assault . | . . . Garrison . | . . . Intercept . | . . . Searches Triggered . | . . . Construction Impeded . | . . . Haulers Reinforced . | . . . Active Scanning Responses . | . . . Cargo Convoy Interrupts . | . . . Stealth | -11 -10 -10 --------- Run | Yrd Mat Sub Distress Signals 6 | . 6 . Communications Jammed . | . . . Distress Signals . | . . . Times Spotted 54 | . 41 13 Peak Tracking Total 5 | . 5 2 Tactical Retreats 7 | . 6 1 Traps | -11 -10 -10 ------- Run | Yrd Mat Sub Traps Triggered . | . . . Indirectly . | . . . Trap Hack Attempts . | . . . Triggered . | . . . Disarmed . | . . . Reprogrammed . | . . . Reused . | . . . Traps Extracted . | . . . Installed 1 | . . 1 Triggered . | . . . Most Traps Carried 1 | . . 1 Machines | -11 -10 -10 ---------- Run | Yrd Mat Sub Machines Disabled 1 | . 1 . Max in Single Turn 1 | . 1 . Machines Repaired . | . . . Machines Dismantled . | . . . Machines Sabotaged . | . . . Overloaded Fab Kills . | . . . Hacking | -11 -10 -10 --------- Run | Yrd Mat Sub Machines Accessed 4 | . 4 . Terminals 3 | . 3 . Fabricators . | . . . Repair Stations 1 | . 1 . Recycling Units . | . . . Scanalyzers . | . . . Garrison Access . | . . . Total Hacks 7 | . 7 . Successful 3 | . 3 . Failed 4 | . 4 . Catastrophic 3 | . 3 . Database Lockouts . | . . . Manual 5 | . 5 . Terminals 5 | . 5 . Fabricators . | . . . Repair Stations 2 | . 2 . Recycling Units . | . . . Scanalyzers . | . . . Garrison Access . | . . . Terminal Hacks 1 | . 1 . Robot Analysis 1 | . 1 . Fabricator Hacks . | . . . Repair Station Hacks 2 | . 2 . Scan Component 1 | . 1 . Repair 1 | . 1 . Recycling Unit Hacks . | . . . Scanalyzer . | . . . Garrison Access Hacks . | . . . Unauthorized Hacks . | . . . Terminals . | . . . Fabricators . | . . . Repair Stations . | . . . Recycling Units . | . . . Scanalyzers . | . . . Garrison Access . | . . . Data Cores Recovered . | . . . Used . | . . . Hacking Detections 4 | . 4 . Full Trace Events 1 | . 1 . Feedback Events . | . . . Feedback Blocked . | . . . Robot Schematics Acquired . | . . . Robots Built . | . . . Authchips . | . . . Time . | . . . Total Robot Build Rating . | . . . Part Schematics Acquired . | . . . Parts Built . | . . . Authchips . | . . . Time . | . . . Total Part Build Rating . | . . . Part Studies Acquired . | . . . Parts Repaired 1 | . 1 . Time 26 | . 26 . Parts Recycled . | . . . Recycled Matter . | . . . Retrieved Matter . | . . . Retrieved Components . | . . . Parts Scanalyzed . | . . . Part Schematics Acquired . | . . . Parts Damaged . | . . . Bothacking | -11 -10 -10 ------------ Run | Yrd Mat Sub Used RIF Installer . | . . . Robots Hacked . | . . . Non-combat . | . . . Combat . | . . . Robot Hacks Applied . | . . . Relay Couplers Released . | . . . Fabnet Peak Effective % . | . . . Robots Rewired . | . . . Allies Hacked . | . . . Hacks Repelled . | . . . Allies | -11 -10 -10 -------- Run | Yrd Mat Sub Total Allies . | . . . Largest Group . | . . . Highest-Rated Group . | . . . Highest-Rated Ally . | . . . Total Orders . | . . . Ally Attacks . | . . . Total Damage . | . . . Kills . | . . . Allies Corrupted . | . . . Allies Melted . | . . . Intel | -11 -10 -10 ------- Run | Yrd Mat Sub Active Infowar (turns) 558 | . . 558 Seismic 558 | . . 558 Robot Analysis Total 1 | . 1 . Derelict Logs Recovered 2 | . . 2 Drone Launches . | . . . Drone Recoveries . | . . . Exploration | -11 -10 -10 ------------- Run | Yrd Mat Sub Turns Passed 3151 | 111 1282 1758 Spaces Moved 1186 | 51 491 644 Core 1 | 1 . . Treads 1185 | 50 491 644 Legs . | . . . Wheels . | . . . Hover . | . . . Flight . | . . . Fastest Speed 50 | 50 160 240 Average Speed 215 | 157 190 240 Slowest Speed 240 | 160 240 240 Overloaded Moves . | . . . Propulsion Burnouts . | . . . Robots Hopped . | . . . Potential Cave-ins . | . . . Cave-ins Triggered . | . . . Exploration Rate (%) 42 | 4 75 49 Regions Visited 2 Branch Regions 1 Pre-discovered Areas 1 | . . 1 Known Exits Taken . | . . . Unknown Exits Taken 2 | 1 1 . Scrap Searched 1 | . . 1 Spaces Dug 5 | . 3 2 Terrain Destroyed 9 | . 3 6 Melee . | . . . Projectile 5 | . 3 2 AOE 4 | . . 4 Terrain Rammed . | . . . Walls Destroyed . | . . . Machines Disabled . | . . . Actions | -11 -10 -10 --------- Run | Yrd Mat Sub Total 1582 | 70 712 800 Wait 217 | 1 119 97 Move 1184 | 50 490 644 Hop . | . . . Pick Up 30 | 8 11 11 Fast Attach 9 | 6 3 . Attach 7 | . 1 6 Detach 1 | . 1 . Swap 28 | 1 13 14 Drop 12 | . 10 2 Fire 88 | 4 59 25 Melee . | . . . Ram . | . . . Kick . | . . . Crush 5 | . 5 . Escape Stasis . | . . . Rewire . | . . . Trap 1 | . . 1 Miscellaneous . | . . . Route ------- -11/Scrapyard -10/Materials (discovered 4 exits: [*Mat x2] / [*Min] / [*Sub]) -10/Subcaves (discovered 2 exits: [*Mat x2]) History --------- Turn | Location | Event 38 | -11/Scrapyard | Discovered new exit (range 16) 112 | -11/Scrapyard | Entered Materials 249 | -10/Materials | Discovered new exit (range 8) 309 | -10/Materials | Build established: Mutant 348 | -10/Materials | Discovered new exit (range 15) 548 | -10/Materials | Repaired Lgt. Treads 598 | -10/Materials | Discovered new exit (range 8) 1329 | -10/Materials | Discovered new exit (range 10) 1394 | -10/Materials | Entered Subcaves 1705 | -10/Subcaves | Core integrity fell below 50% 1851 | -10/Subcaves | Learned 2 Materials zone layouts 2045 | -10/Subcaves | Discovered new exit (range 5) 2422 | -10/Subcaves | Learned location of Zion (-7) 2422 | -10/Subcaves | Met a Zionite searching for "candidates" 2624 | -10/Subcaves | A Subdweller sparked back to life 2636 | -10/Subcaves | Core integrity fell below 20% 2668 | -10/Subcaves | Lost 4 parts (1p1u2w) 3027 | -10/Subcaves | Shifting Twisted Machinery released Flamer 3062 | -10/Subcaves | Learned 4 Materials zone layouts 3066 | -10/Subcaves | Discovered new exit (range 11) 3152 | -10/Subcaves | Destroyed by Autobeam Turret with Autobeam Last Messages --------------- 02683_ Acquired Sub. Beam Cannon. 02689_ Acquired Battle Rifle. 02701_ Subatomizers dissect the Sub. Monowheel. 02723_ 72-ABU(R) destroyed. 02731_ Acquired 36 matter. 02755_ Acquired Sub. Monowheel. 02761_ Acquired Sub. Power Source. 02958_ Assault Rifle destroyed. 02963_ 4M-BOM(R) destroyed. 02970_ Acquired 27 matter. Flamer falls loose from the Twisted Machinery. 03062_ Acquired derelict log, extracted data. Data stored: Materials zone layouts (x4). 03066_ EXIT=FOUND 03122_ Acquired 3 matter. 03134_ Searching scrap... 03134_ Found Sub. Optics. 03134_ Found Shrapnel Trap. 03134_ Found 52 Matter. 03138_ Acquired Shrapnel Trap. Map ----- +----------------------------------------------------+ | ##?????????????????????????????????????????????? | | ##??????????????????????????????????????????????? | | ##???????????????????????????????????????????????? | | #???????????????????????????????????????????????? | | "#?##########????????????????????????????????????? | | ### """ #????????????????????????????????????? | | " " """" #????????????????????????????????????? | | # #""" "" ?????????????????????????????????? | | #### "" ???????????????????????????????? | | #??# ""#### ????????????????????????????????? | | #??## ##?????????????????????????????????????? | | ##??### #??????????????????????????????????????? | | ###???###??????????????????????????????????????? | | #"""#????????????????????????????????????????? | | """#????????????????????????????????????????? | | #" "#????????????????????????????????????????? | | # """ ???????????????????????????????????????? | | ""????????????????????????????????????????? | | ##"""???????????????????????????????????????? | | #??##???????????????????????????????????????? | | ## #???????????????????????????????????????????? | | ?? ""#???????????????????????????????????????????? | | ## ""##??????????????????????????????????????????? | | #????????????????##???##???????????????????? | | #?????"t ### ### #???????????????????? | | ## ###???? @# #????????????????????? | | ###???????"t ### ##????????????????????? | | ##???????" ###?????# # ##???????????????????? | | #?????????????????????#### ##??????????????????? | | # #??????????????"????????## ##?????????????????? | | ?? #???????##???"??????????## ##????????????????? | | ???? ??????#"### ????????????## ##???????????????? | | ?????"????? ??????????????##%#???????????????? | | ??????????# #????????????????#!##??????????????? | | ?????????## #????????????#???## ##?????????????? | | #????????# #????##????? #????## ##????????????? | | ????????## #????? ##### #?????## ##???????????? | | ??????###| "##???? #?????##% #???????????? | | ##?#### """""#???" #????### ###???????????? | | "###"#" # """"#???" ????##" ##?????????????? | | "## "#### < ????### ###??????????????? | | ## # #### ???????# ##????????????????? | | #####?### ### #????????## ##?????????????????? | | #??????## #????????## ##??????????????????? | | ##??????# #######?## ##???????????????????? | | ##?????### #""" # # ### ##????????????????????? | | " ####????####" ##?????????????????????? | | " " ##??????## #??????????????????????? | | " " ""#???????# # # # # #?????????????????????? | | """"""""#??????#############?????????????????????? | +----------------------------------------------------+ Best States ------------- Heat Dissipation 39 Energy Generation 10 Energy Capacity 250 Matter Stores 300 Matter Capacity 300 Sight Range 16 Terrain Scan Density 10 Armor Coverage 150 Evasion (%) 40 Recoil Reduction 2 Item Schematics ----------------- None Robot Schematics ------------------ None Fabricated ------------ Nothing Repaired ---------- Lgt. Treads | 39% | -10/Materials Studied --------- None Alien Tech Used ----------------- None Achievements -------------- None Challenges ------------ None Game ------ Seed GravitonNuclearRegenerator Manual? 0 Play Time 00:15:41 Cumulative 2281.8 hours Start 2026.08.08 @ 21:28:42 End 2026.08.08 @ 21:40:48 Sessions 1 Manual Loads 0 Difficulty Rogue Special Mode None Game No. 1427 Rogue 1423 Adventurer 4 Explorer 0 Win Type - Total 330 Types 248/14/27/11/4/1/6/10/5/4 Lore% 99 Gallery% 96 Achievement% 94 Wizard Run 0 Options --------- Layout 2 ASCII 0 Keyboard 1 Movement Vi Keybinds 0 Fullscreen 0 Font 24/Terminus Map View 59x48 Zoom Use 0% Tactical HUD 1 Map Filters NONE Filters NONE Steam 1 RUN: ff6e1ae4-1f79-4596-a109-80608cd6dd50